fUSD/lending_fUSD_20260621
["ID","MTS","AMOUNT","RATE_DAILY","PERIOD"]
[425886901,1782024669000,-2244.17,0.00027671,2]
[425886903,1782024669000,-500.0,0.00027671,2]
[425886895,1782024669000,-500.0,0.00027671,2]
[425886910,1782024669000,-500.0,0.00027671,2]
[425886912,1782024669000,-1000.0,0.00027671,2]
[425886914,1782024669000,-783.80579245,0.00027671,2]
[425886911,1782024669000,-500.0,0.00027671,2]
[425886909,1782024669000,-500.0,0.00027671,2]
[425886908,1782024669000,-500.0,0.00027671,2]
[425886906,1782024669000,-500.0,0.00027671,2]
[425886907,1782024669000,-801.08,0.00027671,2]
[425886913,1782024669000,-500.0,0.00027671,2]
[425886905,1782024669000,-500.0,0.00027671,2]
[425886904,1782024669000,-500.0,0.00027671,2]
[425886896,1782024669000,-500.0,0.00027671,2]
[425886899,1782024669000,-378.40534981,0.00027671,2]
[425886893,1782024669000,-631.3,0.00027671,2]
[425886897,1782024669000,-500.0,0.00027671,2]
[425886900,1782024669000,-500.0,0.00027671,2]
[425886898,1782024669000,-597.51,0.00027671,2]
[425886918,1782024670000,-399.01939779,0.00027397,2]
[425886917,1782024670000,-500.0,0.00027397,2]
[425886915,1782024670000,-300.0,0.00027397,2]
[425886916,1782024670000,-247.03,0.00027397,2]
[425886940,1782024671000,-834.25,0.00027671,2]
[425886937,1782024671000,-500.0,0.00027671,2]
[425886939,1782024671000,-555.21,0.00027671,2]
[425886935,1782024671000,-500.0,0.00027671,2]
[425886941,1782024671000,-500.0,0.00027671,2]
[425886943,1782024671000,-1143.03,0.00027671,2]
[425886948,1782024671000,-500.0,0.00027671,2]
[425886942,1782024671000,-503.88010011,0.00027671,2]
[425886945,1782024671000,-500.0,0.00027671,2]
[425886946,1782024671000,-500.0,0.00027671,2]
[425886936,1782024671000,-624.26,0.00027671,2]
[425886950,1782024671000,-500.0,0.00027671,2]
[425886947,1782024671000,-566.74,0.00027671,2]
[425886956,1782024671000,-500.0,0.00027671,2]
[425886938,1782024671000,-809.55,0.00027671,2]
[425886944,1782024671000,-639.47132117,0.00027671,2]
[425886930,1782024671000,-500.0,0.00027671,2]
[425886934,1782024671000,-500.0,0.00027671,2]
[425886949,1782024671000,-517.87332687,0.00027671,2]
[425886920,1782024671000,-424.61939779,0.00027397,2]
[425886919,1782024671000,-100.98060221,0.00027397,2]
[425886921,1782024671000,-297.5022485,0.00027397,2]
[425886922,1782024671000,-1263.30835371,0.00027397,2]
[425886924,1782024671000,-119.22420755,0.00027671,2]
[425886933,1782024671000,-500.0,0.00027671,2]
[425886923,1782024671000,-762.94,0.00027397,10]
[425886926,1782024671000,-500.0,0.00027671,2]
[425886927,1782024671000,-4062.39,0.00027671,2]
[425886928,1782024671000,-954.13,0.00027671,2]
[425886929,1782024671000,-562.70274818,0.00027671,2]
[425886932,1782024671000,-603.48,0.00027671,2]
[425886931,1782024671000,-904.48,0.00027671,2]
[425886925,1782024671000,-500.0,0.00027671,2]
[425886951,1782024671000,-500.0,0.00027671,2]
[425886983,1782024671000,-500.0,0.00027671,2]
[425886953,1782024671000,-935.76,0.00027671,2]
[425886973,1782024671000,-514.40179207,0.00027671,2]
[425886977,1782024671000,-500.0,0.00027671,2]
[425886968,1782024671000,-750.17,0.00027671,2]
[425886971,1782024671000,-564.37,0.00027671,2]
[425886975,1782024671000,-500.0,0.00027671,2]
[425886978,1782024671000,-817.63,0.00027671,2]
[425886974,1782024671000,-500.0,0.00027671,2]
[425886980,1782024671000,-896.34,0.00027671,2]
[425886982,1782024671000,-500.0,0.00027671,2]
[425886987,1782024671000,-1554.55639209,0.00027671,2]
[425886981,1782024671000,-500.0,0.00027671,2]
[425886984,1782024671000,-6091.07,0.00027671,2]
[425886985,1782024671000,-7914.34,0.00027671,2]
[425886955,1782024671000,-500.0,0.00027671,2]
[425886986,1782024671000,-500.0,0.00027671,2]
[425886976,1782024671000,-500.0,0.00027671,2]
[425886979,1782024671000,-500.0,0.00027671,2]
[425886969,1782024671000,-500.0,0.00027671,2]
[425886952,1782024671000,-500.0,0.00027671,2]
[425886970,1782024671000,-500.0,0.00027671,2]
[425886954,1782024671000,-500.0,0.00027671,2]
[425886966,1782024671000,-500.0,0.00027671,2]
[425886957,1782024671000,-500.0,0.00027671,2]
[425886963,1782024671000,-500.0,0.00027671,2]
[425886958,1782024671000,-500.0,0.00027671,2]
[425886960,1782024671000,-793.1,0.00027671,2]
[425886967,1782024671000,-252.6837156,0.00027671,2]
[425886964,1782024671000,-500.0,0.00027671,2]
[425886962,1782024671000,-500.0,0.00027671,2]
[425886961,1782024671000,-500.0,0.00027671,2]
[425886959,1782024671000,-500.0,0.00027671,2]
[425886965,1782024671000,-764.69,0.00027671,2]
[425886972,1782024671000,-701.53,0.00027671,2]
[425887012,1782024672000,-1529.68722599,0.00027671,2]
[425887011,1782024672000,-31.83277401,0.00027671,2]
[425887010,1782024672000,-500.0,0.00027671,2]
[425887023,1782024672000,-500.0,0.00027671,2]
[425887013,1782024672000,-500.0,0.00027671,2]
[425887022,1782024672000,-500.0,0.00027671,2]
[425887009,1782024672000,-1089.42,0.00027671,2]
[425887014,1782024672000,-500.0,0.00027671,2]
[425887020,1782024672000,-635.35,0.00027671,2]
[425887018,1782024672000,-500.0,0.00027671,2]
[425887021,1782024672000,-500.0,0.00027671,2]
[425887017,1782024672000,-500.0,0.00027671,2]
[425887024,1782024672000,-784.42,0.00027671,2]
[425887016,1782024672000,-500.0,0.00027671,2]
[425887019,1782024672000,-500.0,0.00027671,2]
[425887034,1782024672000,-500.0,0.00027671,2]
[425887008,1782024672000,-500.0,0.00027671,2]
[425887015,1782024672000,-500.0,0.00027671,2]
[425887003,1782024672000,-500.0,0.00027671,2]
[425886990,1782024672000,-1266.76,0.00027397,2]
[425887005,1782024672000,-1092.23,0.00027671,2]
[425887035,1782024672000,-500.0,0.00027671,2]
[425886989,1782024672000,-500.0,0.00027397,2]
[425886988,1782024672000,-1702.98,0.00027397,2]
[425886992,1782024672000,-335.819307,0.00027671,2]
[425886991,1782024672000,-377.56794451,0.00027671,2]
[425886994,1782024672000,-167.02457679,0.00027671,2]
[425886995,1782024672000,-332.97542321,0.00027671,2]
[425886993,1782024672000,-1052.8663564,0.00027671,2]
[425887000,1782024672000,-500.0,0.00027671,2]
[425886997,1782024672000,-500.0,0.00027671,2]
[425886999,1782024672000,-924.41,0.00027671,2]
[425886996,1782024672000,-500.0,0.00027671,2]
[425886998,1782024672000,-585.48,0.00027671,2]
[425887002,1782024672000,-500.0,0.00027671,2]
[425887001,1782024672000,-500.0,0.00027671,2]
[425887004,1782024672000,-500.0,0.00027671,2]
[425887007,1782024672000,-500.0,0.00027671,2]
[425887006,1782024672000,-583.57,0.00027671,2]
[425887037,1782024672000,-500.0,0.00027671,2]
[425887036,1782024672000,-500.0,0.00027671,2]
[425887025,1782024672000,-592.69,0.00027671,2]
[425887062,1782024672000,-500.0,0.00027671,2]
[425887053,1782024672000,-500.0,0.00027671,2]
[425887057,1782024672000,-500.0,0.00027671,2]
[425887056,1782024672000,-500.0,0.00027671,2]
[425887051,1782024672000,-1188.54,0.00027671,2]
[425887059,1782024672000,-616.72,0.00027671,2]
[425887055,1782024672000,-527.19,0.00027671,2]
[425887058,1782024672000,-624.11,0.00027671,2]
[425887054,1782024672000,-300.0,0.00027671,2]
[425887060,1782024672000,-1447.03,0.00027671,2]
[425887063,1782024672000,-500.0,0.00027671,2]
[425887065,1782024672000,-500.0,0.00027671,2]
[425887068,1782024672000,-500.0,0.00027671,2]
[425887069,1782024672000,-500.0,0.00027671,2]
[425887066,1782024672000,-500.0,0.00027671,2]
[425887064,1782024672000,-500.0,0.00027671,2]
[425887067,1782024672000,-705.63,0.00027671,2]
[425887052,1782024672000,-500.0,0.00027671,2]
[425887048,1782024672000,-500.0,0.00027671,2]
[425887061,1782024672000,-769.38,0.00027671,2]
[425887045,1782024672000,-500.0,0.00027671,2]
[425887047,1782024672000,-500.0,0.00027671,2]
[425887027,1782024672000,-500.0,0.00027671,2]
[425887026,1782024672000,-516.33848026,0.00027671,2]
[425887028,1782024672000,-500.0,0.00027671,2]
[425887029,1782024672000,-500.0,0.00027671,2]
[425887030,1782024672000,-2788.13,0.00027671,2]
[425887033,1782024672000,-173.60998279,0.00027671,2]
[425887031,1782024672000,-500.0,0.00027671,2]
[425887038,1782024672000,-500.0,0.00027671,2]
[425887032,1782024672000,-500.0,0.00027671,2]
[425887041,1782024672000,-467.72194477,0.00027671,2]
[425887050,1782024672000,-1058.21,0.00027671,2]
[425887042,1782024672000,-500.0,0.00027671,2]
[425887039,1782024672000,-678.31,0.00027671,2]
[425887043,1782024672000,-900.08,0.00027671,2]
[425887046,1782024672000,-500.0,0.00027671,2]
[425887044,1782024672000,-500.0,0.00027671,2]
[425887049,1782024672000,-962.41,0.00027671,2]
[425887040,1782024672000,-876.37,0.00027671,2]
[425887108,1782024673000,-151.87,0.00027875,2]
[425887103,1782024673000,-151.51,0.00027869,2]
[425887104,1782024673000,-151.0,0.00027869,2]
[425887106,1782024673000,-152.21,0.00027869,2]
[425887105,1782024673000,-151.0,0.00027869,2]
[425887102,1782024673000,-151.0,0.00027869,2]
[425887112,1782024673000,-151.0,0.00027875,2]
[425887090,1782024673000,-3759.7,0.00027671,2]
[425887107,1782024673000,-151.0,0.00027869,2]
[425887099,1782024673000,-644.18,0.00027849,2]
[425887101,1782024673000,-175.64,0.00027863,30]
[425887110,1782024673000,-151.0,0.00027875,2]
[425887120,1782024673000,-151.0,0.00027877,2]
[425887109,1782024673000,-151.0,0.00027875,2]
[425887113,1782024673000,-151.0,0.00027875,2]
[425887114,1782024673000,-151.0,0.00027875,2]
[425887116,1782024673000,-196.31,0.00027877,2]
[425887122,1782024673000,-151.0,0.00027877,2]
[425887115,1782024673000,-151.0,0.00027875,2]
[425887123,1782024673000,-151.0,0.00027887,2]
[425887118,1782024673000,-151.0,0.00027877,2]
[425887119,1782024673000,-151.0,0.00027877,2]
[425887121,1782024673000,-151.0,0.00027877,2]
[425887136,1782024673000,-500.0,0.00027945,2]
[425887097,1782024673000,-482.42,0.00027844,2]
[425887111,1782024673000,-151.0,0.00027875,2]
[425887094,1782024673000,-1702.98,0.00027671,2]
[425887087,1782024673000,-500.0,0.00027671,2]
[425887096,1782024673000,-1266.76,0.00027671,2]
[425887073,1782024673000,-500.0,0.00027671,2]
[425887074,1782024673000,-500.0,0.00027671,2]
[425887075,1782024673000,-500.0,0.00027671,2]
[425887071,1782024673000,-827.57,0.00027671,2]
[425887070,1782024673000,-500.0,0.00027671,2]
[425887072,1782024673000,-500.0,0.00027671,2]
[425887077,1782024673000,-1520.19,0.00027671,2]
[425887135,1782024673000,-612.86964462,0.00027945,2]
[425887076,1782024673000,-500.0,0.00027671,2]
[425887080,1782024673000,-500.0,0.00027671,2]
[425887088,1782024673000,-903.13,0.00027671,2]
[425887079,1782024673000,-500.0,0.00027671,2]
[425887078,1782024673000,-500.0,0.00027671,2]
[425887084,1782024673000,-500.0,0.00027671,2]
[425887081,1782024673000,-500.0,0.00027671,2]
[425887083,1782024673000,-617.88,0.00027671,2]
[425887082,1782024673000,-500.0,0.00027671,2]
[425887086,1782024673000,-500.0,0.00027671,2]
[425887085,1782024673000,-500.0,0.00027671,2]
[425887089,1782024673000,-500.0,0.00027671,2]
[425887092,1782024673000,-500.0,0.00027671,2]
[425887091,1782024673000,-547.03,0.00027671,2]
[425887093,1782024673000,-1985.43,0.00027671,2]
[425887098,1782024673000,-644.31,0.00027845,2]
[425887095,1782024673000,-500.0,0.00027671,2]
[425887100,1782024673000,-482.42,0.00027849,2]
[425887125,1782024673000,-169.5620491,0.00027935,2]
[425887117,1782024673000,-151.0,0.00027877,2]
[425887126,1782024673000,-551.47855612,0.00027944,2]
[425887157,1782024673000,-500.0,0.00027945,2]
[425887160,1782024673000,-500.0,0.00027945,2]
[425887159,1782024673000,-585.76976104,0.00027945,2]
[425887161,1782024673000,-500.0,0.00027945,2]
[425887163,1782024673000,-500.0,0.00027945,2]
[425887168,1782024673000,-702.44,0.00027945,2]
[425887172,1782024673000,-258.26,0.00027945,2]
[425887164,1782024673000,-512.49735946,0.00027945,2]
[425887170,1782024673000,-500.0,0.00027945,2]
[425887169,1782024673000,-500.0,0.00027945,2]
[425887167,1782024673000,-526.51911145,0.00027945,2]
[425887173,1782024673000,-500.0,0.00027945,2]
[425887156,1782024673000,-586.67,0.00027945,2]
[425887165,1782024673000,-500.0,0.00027945,2]
[425887171,1782024673000,-855.16,0.00027945,2]
[425887176,1782024673000,-1117.63,0.00027945,2]
[425887181,1782024673000,-500.0,0.00027945,2]
[425887180,1782024673000,-620.64352407,0.00027945,2]
[425887179,1782024673000,-1533.91,0.00027945,2]
[425887175,1782024673000,-500.0,0.00027945,2]
[425887177,1782024673000,-500.0,0.00027945,2]
[425887182,1782024673000,-751.5,0.00027945,2]
[425887178,1782024673000,-727.3,0.00027945,2]
[425887183,1782024673000,-531.66,0.00027945,2]
[425887124,1782024673000,-200.0,0.000279,10]
[425887184,1782024673000,-500.0,0.00027945,2]
[425887174,1782024673000,-500.0,0.00027945,2]
[425887158,1782024673000,-560.02,0.00027945,2]
[425887166,1782024673000,-500.0,0.00027945,2]
[425887153,1782024673000,-500.0,0.00027945,2]
[425887127,1782024673000,-551.47855612,0.00027944,2]
[425887155,1782024673000,-500.0,0.00027945,2]
[425887129,1782024673000,-551.47855612,0.00027944,2]
[425887131,1782024673000,-551.47855611,0.00027944,2]
[425887132,1782024673000,-551.47855611,0.00027944,2]
[425887134,1782024673000,-943.13,0.00027944,2]
[425887130,1782024673000,-551.47855611,0.00027944,2]
[425887133,1782024673000,-943.13,0.00027944,2]
[425887128,1782024673000,-551.47855612,0.00027944,2]
[425887139,1782024673000,-500.0,0.00027945,2]
[425887143,1782024673000,-500.0,0.00027945,2]
[425887140,1782024673000,-500.0,0.00027945,2]
[425887138,1782024673000,-500.0,0.00027945,2]
[425887137,1782024673000,-500.0,0.00027945,2]
[425887146,1782024673000,-500.0,0.00027945,2]
[425887141,1782024673000,-500.0,0.00027945,2]
[425887150,1782024673000,-1001.24,0.00027945,2]
[425887148,1782024673000,-500.0,0.00027945,2]
[425887142,1782024673000,-500.0,0.00027945,2]
[425887145,1782024673000,-500.0,0.00027945,2]
[425887149,1782024673000,-500.0,0.00027945,2]
[425887147,1782024673000,-500.0,0.00027945,2]
[425887152,1782024673000,-500.0,0.00027945,2]
[425887162,1782024673000,-500.0,0.00027945,2]
[425887144,1782024673000,-500.0,0.00027945,2]
[425887151,1782024673000,-500.0,0.00027945,2]
[425887154,1782024673000,-500.0,0.00027945,2]
[425887219,1782024674000,-500.0,0.00027945,2]
[425887223,1782024674000,-500.0,0.00027945,2]
[425887229,1782024674000,-500.0,0.00027945,2]
[425887225,1782024674000,-500.0,0.00027945,2]
[425887217,1782024674000,-500.0,0.00027945,2]
[425887226,1782024674000,-500.0,0.00027945,2]
[425887228,1782024674000,-1019.04,0.00027945,2]
[425887220,1782024674000,-500.0,0.00027945,2]
[425887221,1782024674000,-500.0,0.00027945,2]
[425887230,1782024674000,-251.90843351,0.00027945,2]
[425887218,1782024674000,-500.0,0.00027945,2]
[425887224,1782024674000,-500.0,0.00027945,2]
[425887227,1782024674000,-500.0,0.00027945,2]
[425887239,1782024674000,-657.07,0.00027945,2]
[425887236,1782024674000,-500.0,0.00027945,2]
[425887231,1782024674000,-922.89,0.00027945,2]
[425887238,1782024674000,-500.0,0.00027945,2]
[425887234,1782024674000,-500.0,0.00027945,2]
[425887237,1782024674000,-520.28772092,0.00027945,2]
[425887232,1782024674000,-843.58,0.00027945,2]
[425887233,1782024674000,-500.0,0.00027945,2]
[425887240,1782024674000,-500.0,0.00027945,2]
[425887243,1782024674000,-500.0,0.00027945,2]
[425887242,1782024674000,-500.0,0.00027945,2]
[425887241,1782024674000,-500.0,0.00027945,2]
[425887244,1782024674000,-211.13693263,0.00027945,2]
[425887222,1782024674000,-500.0,0.00027945,2]
[425887235,1782024674000,-500.0,0.00027945,2]
[425887213,1782024674000,-500.0,0.00027945,2]
[425887188,1782024674000,-712.54,0.00027945,2]
[425887210,1782024674000,-1481.08,0.00027945,2]
[425887254,1782024674000,-500.0,0.00027945,2]
[425887185,1782024674000,-707.99,0.00027945,2]
[425887187,1782024674000,-500.0,0.00027945,2]
[425887186,1782024674000,-638.93,0.00027945,2]
[425887189,1782024674000,-538.55772886,0.00027945,2]
[425887190,1782024674000,-500.0,0.00027945,2]
[425887192,1782024674000,-500.0,0.00027945,2]
[425887191,1782024674000,-500.0,0.00027945,2]
[425887193,1782024674000,-500.0,0.00027945,2]
[425887195,1782024674000,-500.0,0.00027945,2]
[425887202,1782024674000,-500.0,0.00027945,2]
[425887197,1782024674000,-500.0,0.00027945,2]
[425887194,1782024674000,-500.0,0.00027945,2]
[425887196,1782024674000,-500.0,0.00027945,2]
[425887200,1782024674000,-500.0,0.00027945,2]
[425887198,1782024674000,-500.0,0.00027945,2]
[425887199,1782024674000,-500.0,0.00027945,2]
[425887201,1782024674000,-500.0,0.00027945,2]
[425887215,1782024674000,-500.0,0.00027945,2]
[425887204,1782024674000,-577.8763875,0.00027945,2]
[425887216,1782024674000,-500.0,0.00027945,2]
[425887206,1782024674000,-500.0,0.00027945,2]
[425887207,1782024674000,-512.63,0.00027945,2]
[425887208,1782024674000,-500.0,0.00027945,2]
[425887203,1782024674000,-500.0,0.00027945,2]
[425887205,1782024674000,-569.48420651,0.00027945,2]
[425887214,1782024674000,-507.94656041,0.00027945,2]
[425887212,1782024674000,-513.04212272,0.00027945,2]
[425887209,1782024674000,-500.0,0.00027945,2]
[425887211,1782024674000,-500.0,0.00027945,2]
[425887253,1782024674000,-500.0,0.00027945,2]
[425887261,1782024674000,-500.0,0.00027945,2]
[425887255,1782024674000,-1000.0,0.00027945,2]
[425887283,1782024674000,-500.0,0.00027945,2]
[425887281,1782024674000,-500.0,0.00027945,2]
[425887287,1782024674000,-500.0,0.00027945,2]
[425887282,1782024674000,-500.0,0.00027945,2]
[425887286,1782024674000,-500.0,0.00027945,2]
[425887285,1782024674000,-723.19,0.00027945,2]
[425887291,1782024674000,-577.26,0.00027945,2]
[425887290,1782024674000,-500.0,0.00027945,2]
[425887293,1782024674000,-500.0,0.00027945,2]
[425887288,1782024674000,-500.0,0.00027945,2]
[425887292,1782024674000,-512.54475205,0.00027945,2]
[425887289,1782024674000,-500.0,0.00027945,2]
[425887295,1782024674000,-635.87,0.00027945,2]
[425887284,1782024674000,-500.0,0.00027945,2]
[425887299,1782024674000,-500.0,0.00027945,2]
[425887302,1782024674000,-500.0,0.00027945,2]
[425887303,1782024674000,-500.0,0.00027945,2]
[425887294,1782024674000,-500.0,0.00027945,2]
[425887301,1782024674000,-500.0,0.00027945,2]
[425887297,1782024674000,-626.02,0.00027945,2]
[425887304,1782024674000,-500.0,0.00027945,2]
[425887296,1782024674000,-216.59211478,0.00027945,2]
[425887306,1782024674000,-500.0,0.00027945,2]
[425887305,1782024674000,-522.70265637,0.00027945,2]
[425887307,1782024674000,-500.0,0.00027945,2]
[425887308,1782024674000,-1259.48,0.00027945,2]
[425887309,1782024674000,-500.0,0.00027945,2]
[425887248,1782024674000,-500.0,0.00027945,2]
[425887300,1782024674000,-500.0,0.00027945,2]
[425887278,1782024674000,-471.34774181,0.00027945,2]
[425887298,1782024674000,-534.93869648,0.00027945,2]
[425887272,1782024674000,-500.0,0.00027945,2]
[425887247,1782024674000,-500.0,0.00027945,2]
[425887277,1782024674000,-500.0,0.00027945,2]
[425887249,1782024674000,-396.38899399,0.00027945,2]
[425887245,1782024674000,-1069.36,0.00027945,2]
[425887250,1782024674000,-500.0,0.00027945,2]
[425887252,1782024674000,-500.0,0.00027945,2]
[425887251,1782024674000,-817.18,0.00027945,2]
[425887259,1782024674000,-500.0,0.00027945,2]
[425887256,1782024674000,-500.0,0.00027945,2]
[425887260,1782024674000,-500.0,0.00027945,2]
[425887267,1782024674000,-500.0,0.00027945,2]
[425887263,1782024674000,-500.0,0.00027945,2]
[425887264,1782024674000,-500.0,0.00027945,2]
[425887258,1782024674000,-500.0,0.00027945,2]
[425887246,1782024674000,-500.0,0.00027945,2]
[425887257,1782024674000,-500.0,0.00027945,2]
[425887262,1782024674000,-500.0,0.00027945,2]
[425887274,1782024674000,-500.0,0.00027945,2]
[425887276,1782024674000,-500.0,0.00027945,2]
[425887273,1782024674000,-500.0,0.00027945,2]
[425887270,1782024674000,-500.0,0.00027945,2]
[425887271,1782024674000,-500.0,0.00027945,2]
[425887275,1782024674000,-500.0,0.00027945,2]
[425887279,1782024674000,-500.0,0.00027945,2]
[425887280,1782024674000,-500.0,0.00027945,2]
[425887269,1782024674000,-607.86865031,0.00027945,2]
[425887266,1782024674000,-500.0,0.00027945,2]
[425887268,1782024674000,-500.0,0.00027945,2]
[425887265,1782024674000,-500.0,0.00027945,2]
[425887354,1782024675000,-500.0,0.00027945,2]
[425887344,1782024675000,-500.0,0.00027945,2]
[425887338,1782024675000,-500.0,0.00027945,2]
[425887335,1782024675000,-500.0,0.00027945,2]
[425887339,1782024675000,-500.0,0.00027945,2]
[425887337,1782024675000,-500.0,0.00027945,2]
[425887343,1782024675000,-500.0,0.00027945,2]
[425887340,1782024675000,-500.0,0.00027945,2]
[425887336,1782024675000,-523.34070267,0.00027945,2]
[425887334,1782024675000,-500.0,0.00027945,2]
[425887345,1782024675000,-500.0,0.00027945,2]
[425887346,1782024675000,-500.0,0.00027945,2]
[425887349,1782024675000,-500.0,0.00027945,2]
[425887347,1782024675000,-1117.29,0.00027945,2]
[425887351,1782024675000,-500.0,0.00027945,2]
[425887352,1782024675000,-500.0,0.00027945,2]
[425887353,1782024675000,-500.0,0.00027945,2]
[425887350,1782024675000,-500.0,0.00027945,2]
[425887355,1782024675000,-500.0,0.00027945,2]
[425887330,1782024675000,-653.36,0.00027945,2]
[425887357,1782024675000,-500.0,0.00027945,2]
[425887348,1782024675000,-567.78109464,0.00027945,2]
[425887341,1782024675000,-500.0,0.00027945,2]
[425887320,1782024675000,-514.32169163,0.00027945,2]
[425887333,1782024675000,-500.0,0.00027945,2]
[425887356,1782024675000,-719.15,0.00027945,2]
[425887312,1782024675000,-518.66496677,0.00027945,2]
[425887313,1782024675000,-511.74051271,0.00027945,2]
[425887314,1782024675000,-500.0,0.00027945,2]
[425887310,1782024675000,-500.0,0.00027945,2]
[425887315,1782024675000,-500.0,0.00027945,2]
[425887311,1782024675000,-500.0,0.00027945,2]
[425887317,1782024675000,-500.0,0.00027945,2]
[425887319,1782024675000,-152.20845448,0.00027945,2]
[425887321,1782024675000,-500.0,0.00027945,2]
[425887342,1782024675000,-500.0,0.00027945,2]
[425887323,1782024675000,-500.0,0.00027945,2]
[425887327,1782024675000,-500.0,0.00027945,2]
[425887322,1782024675000,-500.0,0.00027945,2]
[425887318,1782024675000,-500.0,0.00027945,2]
[425887328,1782024675000,-500.0,0.00027945,2]
[425887324,1782024675000,-545.11,0.00027945,2]
[425887325,1782024675000,-500.0,0.00027945,2]
[425887326,1782024675000,-500.0,0.00027945,2]
[425887329,1782024675000,-500.0,0.00027945,2]
[425887331,1782024675000,-500.0,0.00027945,2]
[425887332,1782024675000,-549.75,0.00027945,2]
[425887316,1782024675000,-500.0,0.00027945,2]
[425887358,1782024675000,-500.0,0.00027945,2]
[425887376,1782024675000,-500.0,0.00027945,2]
[425887364,1782024675000,-500.0,0.00027945,2]
[425887388,1782024675000,-500.0,0.00027945,2]
[425887380,1782024675000,-500.0,0.00027945,2]
[425887391,1782024675000,-500.0,0.00027945,2]
[425887401,1782024675000,-500.0,0.00027945,2]
[425887390,1782024675000,-769.91,0.00027945,2]
[425887402,1782024675000,-526.65848438,0.00027945,2]
[425887393,1782024675000,-654.53,0.00027945,2]
[425887394,1782024675000,-500.0,0.00027945,2]
[425887392,1782024675000,-589.89182837,0.00027945,2]
[425887395,1782024675000,-500.0,0.00027945,2]
[425887381,1782024675000,-500.0,0.00027945,2]
[425887359,1782024675000,-500.0,0.00027945,2]
[425887396,1782024675000,-558.93,0.00027945,2]
[425887398,1782024675000,-348.28376703,0.00027945,2]
[425887400,1782024675000,-500.0,0.00027945,2]
[425887403,1782024675000,-500.0,0.00027945,2]
[425887407,1782024675000,-832.03,0.00027945,2]
[425887406,1782024675000,-500.0,0.00027945,2]
[425887405,1782024675000,-503.92,0.00027945,2]
[425887404,1782024675000,-500.0,0.00027945,2]
[425887408,1782024675000,-593.6,0.00027945,2]
[425887409,1782024675000,-500.0,0.00027945,2]
[425887397,1782024675000,-614.5,0.00027945,2]
[425887382,1782024675000,-1096.81,0.00027945,2]
[425887399,1782024675000,-500.0,0.00027945,2]
[425887386,1782024675000,-169.5427946,0.00027945,2]
[425887387,1782024675000,-500.0,0.00027945,2]
[425887362,1782024675000,-839.97,0.00027945,2]
[425887361,1782024675000,-642.15,0.00027945,2]
[425887365,1782024675000,-545.47,0.00027945,2]
[425887360,1782024675000,-500.0,0.00027945,2]
[425887363,1782024675000,-500.0,0.00027945,2]
[425887377,1782024675000,-569.32161156,0.00027945,2]
[425887375,1782024675000,-500.0,0.00027945,2]